[Event "Titled Tuesday Blitz April 19 Late 2022"]
[White "Bachmann, Axel"]
[Black "Fernandez Hernandez, Gerardo"]
[WhiteFideId "3700488"]
[BlackFideId "2207400"]
[WhiteElo "2587"]
[BlackElo "2152"]
[Result "0-1"]
[Round "07"]
[TimeControl "180+1"]
[Date "2022.04.19"]
[WhiteClock "0:00:09"]
[BlackClock "0:00:16"]

1. d4 {[%clk 0:03:00]}  Nf6 {[%clk 0:02:59]} 2. g3 {[%clk 0:03:01]}  g6 {[%clk 0:02:57]} 3. Bg2 {[%clk 0:03:01]}  Bg7 {[%clk 0:02:58]} 4. e4 {[%clk 0:03:01]}  d6 {[%clk 0:02:56]} 5. Ne2 {[%clk 0:03:02]}  O-O {[%clk 0:02:56]} 6. O-O {[%clk 0:03:02]}  Nbd7 {[%clk 0:02:54]} 7. Nbc3 {[%clk 0:03:01]}  e5 {[%clk 0:02:54]} 8. h3 {[%clk 0:02:59]}  exd4 {[%clk 0:02:50]} 9. Nxd4 {[%clk 0:02:59]}  Re8 {[%clk 0:02:50]} 10. Re1 {[%clk 0:02:59]}  Nc5 {[%clk 0:02:46]} 11. Bf4 {[%clk 0:02:59]}  Nh5 {[%clk 0:02:43]} 12. Be3 {[%clk 0:02:59]}  Nf6 {[%clk 0:02:40]} 13. Bf4 {[%clk 0:02:59]}  Nh5 {[%clk 0:02:39]} 14. Be3 {[%clk 0:03:00]}  Nf6 {[%clk 0:02:39]} 15. f3 {[%clk 0:03:00]}  Nh5 {[%clk 0:02:35]} 16. Nce2 {[%clk 0:02:45]}  d5 {[%clk 0:02:30]} 17. g4 {[%clk 0:02:36]}  dxe4 {[%clk 0:02:11]} 18. f4 {[%clk 0:02:32]}  Nf6 {[%clk 0:02:05]} 19. Ng3 {[%clk 0:02:33]}  Qe7 {[%clk 0:01:47]} 20. c4 {[%clk 0:02:25]}  Nd3 {[%clk 0:01:40]} 21. Re2 {[%clk 0:02:22]}  Bxg4 {[%clk 0:01:36]} 22. hxg4 {[%clk 0:02:19]}  Nxg4 {[%clk 0:01:36]} 23. Bxe4 {[%clk 0:01:37]}  Nc5 {[%clk 0:00:54]} 24. Re1 {[%clk 0:00:26]}  Nxe3 {[%clk 0:00:45]} 25. Rxe3 {[%clk 0:00:25]}  Rad8 {[%clk 0:00:39]} 26. Nc2 {[%clk 0:00:09]}  Rxd1+ {[%clk 0:00:38]} 27. Rxd1 {[%clk 0:00:10]}  Nxe4 {[%clk 0:00:36]} 28. Rxe4 {[%clk 0:00:10]}  Qc5+ {[%clk 0:00:33]} 29. Kg2 {[%clk 0:00:09]}  Rxe4 {[%clk 0:00:30]} 30. Nxe4 {[%clk 0:00:10]}  Qc6 {[%clk 0:00:28]} 31. Rd5 {[%clk 0:00:08]}  Bxb2 {[%clk 0:00:26]} 32. Ne3 {[%clk 0:00:07]}  b5 {[%clk 0:00:23]} 33. Kf3 {[%clk 0:00:03]}  bxc4 {[%clk 0:00:22]} 34. Rc5 {[%clk 0:00:03]}  Qb7 {[%clk 0:00:18]} 35. Rxc4 {[%clk 0:00:03]}  f5 {[%clk 0:00:19]} 36. Ke2 {[%clk 0:00:01]}  fxe4 {[%clk 0:00:19]} 37. Ng4 {[%clk 0:00:01]}  Qb5 {[%clk 0:00:18]} 38. Ne3 {[%clk 0:00:01]}  Bc1 {[%clk 0:00:18]} 39. Kd1 {[%clk 0:00:01]}  Bxe3 {[%clk 0:00:17]} 40. Rxe4 {[%clk 0:00:02]}  Qd5+ {[%clk 0:00:17]} 41. Kc2 {[%clk 0:00:01]}  Qxe4+ {[%clk 0:00:17]} 42. Kb3 {[%clk 0:00:02]}  Bxf4 {[%clk 0:00:17]} 43. Kb2 {[%clk 0:00:03]}  g5 {[%clk 0:00:17]} 44. Kc3 {[%clk 0:00:04]}  g4 {[%clk 0:00:17]} 45. a4 {[%clk 0:00:05]}  g3 {[%clk 0:00:16]} 46. a5 {[%clk 0:00:05]}  g2 {[%clk 0:00:17]} 47. a6 {[%clk 0:00:06]}  g1=Q {[%clk 0:00:16]} 48. Kb3 {[%clk 0:00:07]}  Qge3+ {[%clk 0:00:16]} 49. Ka2 {[%clk 0:00:08]}  Qg2+ {[%clk 0:00:16]} 50. Kb1 {[%clk 0:00:09]}  Qeg1# {[%clk 0:00:16]} 0-1


[Site "https://www.chess.com"]

[Event "Titled Tuesday Blitz April 19 Late 2022"]
[White "Bibasa, Bob"]
[Black "Lopez, Henry"]
[WhiteFideId "10000240"]
[BlackFideId "5203830"]
[WhiteElo "2056"]
[BlackElo "2177"]
[Result "0-1"]
[Round "07"]
[TimeControl "180+1"]
[Date "2022.04.19"]
[WhiteClock "0:00:20"]
[BlackClock "0:00:48"]

1. e4 {[%clk 0:03:00]}  c5 {[%clk 0:02:59]} 2. Nf3 {[%clk 0:03:01]}  d6 {[%clk 0:02:59]} 3. d4 {[%clk 0:03:00]}  cxd4 {[%clk 0:02:59]} 4. Nxd4 {[%clk 0:03:01]}  Nf6 {[%clk 0:02:59]} 5. f3 {[%clk 0:03:02]}  e6 {[%clk 0:02:52]} 6. c4 {[%clk 0:03:01]}  a6 {[%clk 0:02:52]} 7. Be3 {[%clk 0:03:01]}  b6 {[%clk 0:02:53]} 8. Be2 {[%clk 0:02:58]}  Bb7 {[%clk 0:02:54]} 9. Nc3 {[%clk 0:02:58]}  Nbd7 {[%clk 0:02:54]} 10. Qd2 {[%clk 0:02:58]}  Rc8 {[%clk 0:02:55]} 11. Rc1 {[%clk 0:02:58]}  Be7 {[%clk 0:02:55]} 12. O-O {[%clk 0:02:58]}  O-O {[%clk 0:02:54]} 13. b3 {[%clk 0:02:58]}  Re8 {[%clk 0:02:54]} 14. g4 {[%clk 0:02:44]}  h6 {[%clk 0:02:52]} 15. h4 {[%clk 0:02:44]}  Nh7 {[%clk 0:02:50]} 16. h5 {[%clk 0:02:42]}  Qc7 {[%clk 0:02:46]} 17. f4 {[%clk 0:02:28]}  Ndf6 {[%clk 0:02:32]} 18. Bf3 {[%clk 0:02:26]}  Nf8 {[%clk 0:02:25]} 19. g5 {[%clk 0:02:16]}  hxg5 {[%clk 0:02:24]} 20. fxg5 {[%clk 0:02:12]}  N6h7 {[%clk 0:02:25]} 21. g6 {[%clk 0:02:08]}  fxg6 {[%clk 0:02:22]} 22. hxg6 {[%clk 0:02:08]}  Nf6 {[%clk 0:02:22]} 23. Qg2 {[%clk 0:01:56]}  Rb8 {[%clk 0:02:08]} 24. Qh3 {[%clk 0:01:52]}  Bc8 {[%clk 0:02:07]} 25. Kg2 {[%clk 0:01:46]}  Nxg6 {[%clk 0:01:49]} 26. Qg3 {[%clk 0:01:34]}  Ne5 {[%clk 0:01:45]} 27. Bg5 {[%clk 0:01:27]}  Rf8 {[%clk 0:01:41]} 28. Be2 {[%clk 0:01:22]}  Bd8 {[%clk 0:01:34]} 29. Rh1 {[%clk 0:01:13]}  Qf7 {[%clk 0:01:28]} 30. Rcf1 {[%clk 0:01:04]}  Qg6 {[%clk 0:01:28]} 31. Bxf6 {[%clk 0:00:29]}  Qxg3+ {[%clk 0:01:26]} 32. Kxg3 {[%clk 0:00:30]}  Bxf6 {[%clk 0:01:25]} 33. Rh5 {[%clk 0:00:23]}  g6 {[%clk 0:01:21]} 34. Rh2 {[%clk 0:00:20]}  Bd7 {[%clk 0:01:14]} 35. Rhf2 {[%clk 0:00:19]}  Bg7 {[%clk 0:01:14]} 36. Rxf8+ {[%clk 0:00:18]}  Rxf8 {[%clk 0:01:13]} 37. Rxf8+ {[%clk 0:00:18]}  Kxf8 {[%clk 0:01:13]} 38. Nf3 {[%clk 0:00:19]}  Nxf3 {[%clk 0:01:11]} 39. Bxf3 {[%clk 0:00:16]}  Bxc3 {[%clk 0:01:11]} 40. Kf4 {[%clk 0:00:17]}  Kf7 {[%clk 0:01:09]} 41. Bg4 {[%clk 0:00:15]}  e5+ {[%clk 0:01:06]} 42. Kg3 {[%clk 0:00:16]}  Bxg4 {[%clk 0:01:06]} 43. Kxg4 {[%clk 0:00:16]}  Kf6 {[%clk 0:01:07]} 44. a3 {[%clk 0:00:16]}  a5 {[%clk 0:01:05]} 45. Kh4 {[%clk 0:00:15]}  Bb2 {[%clk 0:01:01]} 46. a4 {[%clk 0:00:15]}  Bc1 {[%clk 0:00:59]} 47. Kg4 {[%clk 0:00:15]}  Bd2 {[%clk 0:00:58]} 48. Kh4 {[%clk 0:00:15]}  Be1+ {[%clk 0:00:57]} 49. Kg4 {[%clk 0:00:16]}  Bf2 {[%clk 0:00:56]} 50. Kf3 {[%clk 0:00:16]}  Bd4 {[%clk 0:00:53]} 51. Kg4 {[%clk 0:00:16]}  Bc3 {[%clk 0:00:51]} 52. Kh4 {[%clk 0:00:16]}  Kg7 {[%clk 0:00:50]} 53. Kg5 {[%clk 0:00:16]}  Bd2+ {[%clk 0:00:49]} 54. Kg4 {[%clk 0:00:17]}  Kh6 {[%clk 0:00:49]} 55. Kh4 {[%clk 0:00:17]}  g5+ {[%clk 0:00:48]} 56. Kg4 {[%clk 0:00:18]}  Kg6 {[%clk 0:00:48]} 57. Kf3 {[%clk 0:00:18]}  Kh5 {[%clk 0:00:48]} 58. Ke2 {[%clk 0:00:18]}  Bf4 {[%clk 0:00:47]} 59. Kf3 {[%clk 0:00:19]}  Kh4 {[%clk 0:00:47]} 60. Kg2 {[%clk 0:00:19]}  Kg4 {[%clk 0:00:47]} 61. Kf2 {[%clk 0:00:19]}  Bg3+ {[%clk 0:00:47]} 62. Kg2 {[%clk 0:00:19]}  Kf4 {[%clk 0:00:47]} 63. Kh3 {[%clk 0:00:20]}  g4+ {[%clk 0:00:48]} 64. Kg2 {[%clk 0:00:20]}  Be1 {[%clk 0:00:48]} 0-1


[Site "https://www.chess.com"]

[Event "Titled Tuesday Blitz April 19 Late 2022"]
[White "Bilych, Olexiy"]
[Black "Ibadov, Dashgyn"]
[WhiteFideId "14156504"]
[BlackFideId "24107514"]
[WhiteElo "2176"]
[BlackElo "2138"]
[Result "1-0"]
[Round "07"]
[TimeControl "180+1"]
[Date "2022.04.19"]
[WhiteClock "0:00:25"]
[BlackClock "0:00:03"]

1. e4 {[%clk 0:03:00]}  c5 {[%clk 0:02:59]} 2. Nf3 {[%clk 0:03:01]}  d6 {[%clk 0:02:58]} 3. d4 {[%clk 0:03:01]}  cxd4 {[%clk 0:02:59]} 4. Nxd4 {[%clk 0:03:02]}  Nf6 {[%clk 0:02:59]} 5. Nc3 {[%clk 0:03:02]}  Nc6 {[%clk 0:02:59]} 6. Bg5 {[%clk 0:03:03]}  e6 {[%clk 0:02:59]} 7. Qd3 {[%clk 0:03:03]}  Be7 {[%clk 0:02:56]} 8. O-O-O {[%clk 0:03:00]}  a6 {[%clk 0:02:51]} 9. Nxc6 {[%clk 0:02:59]}  bxc6 {[%clk 0:02:52]} 10. Qg3 {[%clk 0:02:59]}  Qb6 {[%clk 0:02:41]} 11. Be3 {[%clk 0:02:55]}  Qb4 {[%clk 0:02:39]} 12. a3 {[%clk 0:02:53]}  Qa5 {[%clk 0:02:31]} 13. Be2 {[%clk 0:02:41]}  Rb8 {[%clk 0:02:25]} 14. Rxd6 {[%clk 0:02:30]}  Bxd6 {[%clk 0:02:08]} 15. Qxd6 {[%clk 0:02:31]}  Nd7 {[%clk 0:02:01]} 16. Rd1 {[%clk 0:02:15]}  Qe5 {[%clk 0:01:58]} 17. Qxc6 {[%clk 0:02:13]}  O-O {[%clk 0:01:46]} 18. f4 {[%clk 0:02:00]}  Qa5 {[%clk 0:01:29]} 19. Rxd7 {[%clk 0:01:53]}  Bxd7 {[%clk 0:01:30]} 20. Qxd7 {[%clk 0:01:54]}  Rfd8 {[%clk 0:01:28]} 21. Qa4 {[%clk 0:01:50]}  Qc7 {[%clk 0:01:17]} 22. Qxa6 {[%clk 0:01:42]}  h6 {[%clk 0:01:15]} 23. Qc4 {[%clk 0:01:39]}  Qe7 {[%clk 0:01:15]} 24. g3 {[%clk 0:01:32]}  Rdc8 {[%clk 0:01:12]} 25. Qd4 {[%clk 0:01:32]}  Qb7 {[%clk 0:01:10]} 26. b3 {[%clk 0:01:29]}  Rd8 {[%clk 0:01:05]} 27. Qa7 {[%clk 0:01:25]}  Qc6 {[%clk 0:01:02]} 28. Kb2 {[%clk 0:01:24]}  Rbc8 {[%clk 0:01:01]} 29. Qa5 {[%clk 0:01:23]}  Qd6 {[%clk 0:00:36]} 30. a4 {[%clk 0:01:14]}  Qe7 {[%clk 0:00:25]} 31. e5 {[%clk 0:01:06]}  Rc6 {[%clk 0:00:23]} 32. Bb5 {[%clk 0:00:55]}  Rcc8 {[%clk 0:00:16]} 33. Qb6 {[%clk 0:00:51]}  h5 {[%clk 0:00:12]} 34. a5 {[%clk 0:00:50]}  Rb8 {[%clk 0:00:12]} 35. Qc5 {[%clk 0:00:48]}  Qb7 {[%clk 0:00:10]} 36. a6 {[%clk 0:00:48]}  Qg2 {[%clk 0:00:11]} 37. a7 {[%clk 0:00:47]}  Rbc8 {[%clk 0:00:10]} 38. Qb4 {[%clk 0:00:42]}  Qxh2 {[%clk 0:00:10]} 39. Ba6 {[%clk 0:00:42]}  Ra8 {[%clk 0:00:09]} 40. Bb7 {[%clk 0:00:41]}  Rxa7 {[%clk 0:00:08]} 41. Bxa7 {[%clk 0:00:41]}  Qxg3 {[%clk 0:00:09]} 42. Ne4 {[%clk 0:00:40]}  Qg4 {[%clk 0:00:04]} 43. Qe7 {[%clk 0:00:38]}  Rf8 {[%clk 0:00:03]} 44. Bc5 {[%clk 0:00:37]}  Rb8 {[%clk 0:00:04]} 45. Nd6 {[%clk 0:00:32]}  Qxf4 {[%clk 0:00:03]} 46. Be4 {[%clk 0:00:26]}  Qxe5+ {[%clk 0:00:03]} 47. Kb1 {[%clk 0:00:25]} 1-0


[Site "https://www.chess.com"]

[Event "Titled Tuesday Blitz April 19 Late 2022"]
[White "Bluebaum, Matthias"]
[Black "Naroditsky, Daniel"]
[WhiteFideId "24651516"]
[BlackFideId "2026961"]
[WhiteElo "2550"]
[BlackElo "2608"]
[Result "1/2-1/2"]
[Round "07"]
[TimeControl "180+1"]
[Date "2022.04.19"]
[WhiteClock "0:00:13"]
[BlackClock "0:00:07"]

1. d4 {[%clk 0:03:00]}  Nf6 {[%clk 0:02:57]} 2. c4 {[%clk 0:03:01]}  g6 {[%clk 0:02:54]} 3. Nc3 {[%clk 0:03:01]}  Bg7 {[%clk 0:02:55]} 4. Nf3 {[%clk 0:03:01]}  d6 {[%clk 0:02:56]} 5. Bg5 {[%clk 0:03:01]}  O-O {[%clk 0:02:57]} 6. e3 {[%clk 0:02:58]}  Bf5 {[%clk 0:02:50]} 7. Bd3 {[%clk 0:02:49]}  Bxd3 {[%clk 0:02:48]} 8. Qxd3 {[%clk 0:02:49]}  Nc6 {[%clk 0:02:48]} 9. d5 {[%clk 0:02:46]}  Nb4 {[%clk 0:02:48]} 10. Qd2 {[%clk 0:02:42]}  a5 {[%clk 0:02:49]} 11. O-O {[%clk 0:02:40]}  h6 {[%clk 0:02:46]} 12. Bh4 {[%clk 0:02:39]}  Nd7 {[%clk 0:02:47]} 13. e4 {[%clk 0:02:33]}  Nc5 {[%clk 0:02:44]} 14. Rae1 {[%clk 0:02:16]}  g5 {[%clk 0:02:31]} 15. Bg3 {[%clk 0:02:16]}  e5 {[%clk 0:02:32]} 16. h4 {[%clk 0:02:03]}  Bf6 {[%clk 0:02:20]} 17. hxg5 {[%clk 0:01:53]}  hxg5 {[%clk 0:02:20]} 18. Nh2 {[%clk 0:01:54]}  Bg7 {[%clk 0:02:05]} 19. Ng4 {[%clk 0:01:49]}  f5 {[%clk 0:02:02]} 20. exf5 {[%clk 0:01:49]}  Rxf5 {[%clk 0:02:03]} 21. Re3 {[%clk 0:01:35]}  Qd7 {[%clk 0:01:54]} 22. a3 {[%clk 0:01:33]}  Nba6 {[%clk 0:01:49]} 23. Qc2 {[%clk 0:01:33]}  Raf8 {[%clk 0:01:47]} 24. Re2 {[%clk 0:01:18]}  a4 {[%clk 0:01:44]} 25. f3 {[%clk 0:01:14]}  Nb3 {[%clk 0:01:43]} 26. Bf2 {[%clk 0:01:02]}  Nac5 {[%clk 0:01:20]} 27. Qd1 {[%clk 0:00:47]}  Rf4 {[%clk 0:01:16]} 28. Be3 {[%clk 0:00:40]}  Rxc4 {[%clk 0:01:09]} 29. Bxg5 {[%clk 0:00:40]}  e4 {[%clk 0:01:00]} 30. Nxe4 {[%clk 0:00:30]}  Nxe4 {[%clk 0:00:53]} 31. Rxe4 {[%clk 0:00:31]}  Rxe4 {[%clk 0:00:34]} 32. fxe4 {[%clk 0:00:32]}  Rxf1+ {[%clk 0:00:29]} 33. Kxf1 {[%clk 0:00:33]}  Qf7+ {[%clk 0:00:23]} 34. Kg1 {[%clk 0:00:30]}  Qg6 {[%clk 0:00:22]} 35. Be3 {[%clk 0:00:21]}  Qxe4 {[%clk 0:00:20]} 36. Bf2 {[%clk 0:00:05]}  Bxb2 {[%clk 0:00:16]} 37. Nh6+ {[%clk 0:00:05]}  Kh7 {[%clk 0:00:16]} 38. Nf7 {[%clk 0:00:05]}  Kg7 {[%clk 0:00:16]} 39. Ng5 {[%clk 0:00:05]}  Qf5 {[%clk 0:00:11]} 40. Ne6+ {[%clk 0:00:05]}  Kf7 {[%clk 0:00:12]} 41. Nxc7 {[%clk 0:00:04]}  Bxa3 {[%clk 0:00:11]} 42. Nb5 {[%clk 0:00:04]}  Bb4 {[%clk 0:00:08]} 43. Qe2 {[%clk 0:00:03]}  Qxd5 {[%clk 0:00:06]} 44. Nc7 {[%clk 0:00:03]}  Qe5 {[%clk 0:00:05]} 45. Qc4+ {[%clk 0:00:03]}  d5 {[%clk 0:00:06]} 46. Qxb4 {[%clk 0:00:03]}  Qxc7 {[%clk 0:00:06]} 47. Qxa4 {[%clk 0:00:04]}  Nd2 {[%clk 0:00:04]} 48. Qh4 {[%clk 0:00:02]}  Ke6 {[%clk 0:00:03]} 49. Qh3+ {[%clk 0:00:02]}  Ke7 {[%clk 0:00:02]} 50. Qh7+ {[%clk 0:00:03]}  Kd8 {[%clk 0:00:03]} 51. Qg8+ {[%clk 0:00:03]}  Kd7 {[%clk 0:00:03]} 52. Qxd5+ {[%clk 0:00:03]}  Qd6 {[%clk 0:00:03]} 53. Qxb7+ {[%clk 0:00:04]}  Ke6 {[%clk 0:00:04]} 54. Qc8+ {[%clk 0:00:04]}  Kf6 {[%clk 0:00:03]} 55. Bh4+ {[%clk 0:00:03]}  Kf7 {[%clk 0:00:04]} 56. Qb7+ {[%clk 0:00:03]}  Ke6 {[%clk 0:00:04]} 57. Qc8+ {[%clk 0:00:03]}  Qd7 {[%clk 0:00:03]} 58. Qg8+ {[%clk 0:00:03]}  Qf7 {[%clk 0:00:04]} 59. Qc8+ {[%clk 0:00:04]}  Qd7 {[%clk 0:00:03]} 60. Qa6+ {[%clk 0:00:03]}  Qd6 {[%clk 0:00:04]} 61. Qe2+ {[%clk 0:00:03]}  Kd7 {[%clk 0:00:03]} 62. Bf2 {[%clk 0:00:04]}  Qd5 {[%clk 0:00:02]} 63. Qg4+ {[%clk 0:00:04]}  Kd6 {[%clk 0:00:02]} 64. Qe2 {[%clk 0:00:04]}  Kc6 {[%clk 0:00:03]} 65. g4 {[%clk 0:00:04]}  Ne4 {[%clk 0:00:04]} 66. Qf3 {[%clk 0:00:04]}  Kd6 {[%clk 0:00:02]} 67. Kg2 {[%clk 0:00:03]}  Nxf2 {[%clk 0:00:02]} 68. Qxd5+ {[%clk 0:00:02]}  Kxd5 {[%clk 0:00:02]} 69. Kxf2 {[%clk 0:00:03]}  Ke6 {[%clk 0:00:02]} 70. Kg3 {[%clk 0:00:04]}  Kf6 {[%clk 0:00:02]} 71. Kh4 {[%clk 0:00:05]}  Kg6 {[%clk 0:00:03]} 72. g5 {[%clk 0:00:05]}  Kg7 {[%clk 0:00:03]} 73. Kh5 {[%clk 0:00:06]}  Kh7 {[%clk 0:00:04]} 74. g6+ {[%clk 0:00:07]}  Kg7 {[%clk 0:00:05]} 75. Kg5 {[%clk 0:00:08]}  Kg8 {[%clk 0:00:05]} 76. Kf6 {[%clk 0:00:08]}  Kf8 {[%clk 0:00:05]} 77. Kf5 {[%clk 0:00:09]}  Kg7 {[%clk 0:00:06]} 78. Kg5 {[%clk 0:00:10]}  Kg8 {[%clk 0:00:06]} 79. Kf6 {[%clk 0:00:11]}  Kf8 {[%clk 0:00:07]} 80. g7+ {[%clk 0:00:12]}  Kg8 {[%clk 0:00:07]} 81. Kg6 {[%clk 0:00:13]} 1/2-1/2


[Site "https://www.chess.com"]

[Event "Titled Tuesday Blitz April 19 Late 2022"]
[White "Bortnyk, Olexandr"]
[Black "Sjugirov, Sanan"]
[WhiteFideId "14120828"]
[BlackFideId "4189302"]
[WhiteElo "2723"]
[BlackElo "2602"]
[Result "0-1"]
[Round "07"]
[TimeControl "180+1"]
[Date "2022.04.19"]
[WhiteClock "0:00:02"]
[BlackClock "0:00:12"]

1. d4 {[%clk 0:03:00]}  Nf6 {[%clk 0:02:59]} 2. Nc3 {[%clk 0:03:01]}  d5 {[%clk 0:03:00]} 3. Bf4 {[%clk 0:03:01]}  c6 {[%clk 0:02:54]} 4. e3 {[%clk 0:03:01]}  Bf5 {[%clk 0:02:54]} 5. Nf3 {[%clk 0:02:59]}  e6 {[%clk 0:02:51]} 6. Ne5 {[%clk 0:02:59]}  h6 {[%clk 0:02:41]} 7. g4 {[%clk 0:02:58]}  Bh7 {[%clk 0:02:41]} 8. h4 {[%clk 0:02:59]}  Nfd7 {[%clk 0:02:37]} 9. Bd3 {[%clk 0:02:59]}  Nxe5 {[%clk 0:02:32]} 10. Bxe5 {[%clk 0:02:58]}  Bxd3 {[%clk 0:02:32]} 11. Qxd3 {[%clk 0:02:58]}  Nd7 {[%clk 0:02:31]} 12. Bg3 {[%clk 0:02:58]}  h5 {[%clk 0:02:18]} 13. g5 {[%clk 0:02:58]}  g6 {[%clk 0:02:16]} 14. e4 {[%clk 0:02:58]}  Be7 {[%clk 0:02:03]} 15. exd5 {[%clk 0:02:55]}  cxd5 {[%clk 0:02:02]} 16. Nb5 {[%clk 0:02:43]}  O-O {[%clk 0:01:59]} 17. O-O {[%clk 0:02:33]}  Qb6 {[%clk 0:01:54]} 18. b3 {[%clk 0:02:15]}  a6 {[%clk 0:01:37]} 19. Nc3 {[%clk 0:02:13]}  Rac8 {[%clk 0:01:34]} 20. Ne2 {[%clk 0:02:05]}  Rfd8 {[%clk 0:01:24]} 21. c4 {[%clk 0:01:59]}  dxc4 {[%clk 0:01:24]} 22. bxc4 {[%clk 0:02:00]}  Qc6 {[%clk 0:01:21]} 23. Rac1 {[%clk 0:01:58]}  Qa4 {[%clk 0:00:49]} 24. Nf4 {[%clk 0:01:47]}  Nf8 {[%clk 0:00:49]} 25. d5 {[%clk 0:01:46]}  Bd6 {[%clk 0:00:40]} 26. Ne2 {[%clk 0:01:35]}  exd5 {[%clk 0:00:34]} 27. cxd5 {[%clk 0:01:31]}  Rxc1 {[%clk 0:00:30]} 28. Rxc1 {[%clk 0:01:32]}  Bxg3 {[%clk 0:00:30]} 29. fxg3 {[%clk 0:01:24]}  Qxa2 {[%clk 0:00:26]} 30. Nc3 {[%clk 0:01:00]}  Qa3 {[%clk 0:00:26]} 31. Rf1 {[%clk 0:00:53]}  Nd7 {[%clk 0:00:21]} 32. Kg2 {[%clk 0:00:49]}  Rc8 {[%clk 0:00:20]} 33. Qf3 {[%clk 0:00:04]}  Ne5 {[%clk 0:00:20]} 34. Qf6 {[%clk 0:00:04]}  Qxc3 {[%clk 0:00:19]} 35. Rf2 {[%clk 0:00:03]}  Qd4 {[%clk 0:00:17]} 36. Kh3 {[%clk 0:00:03]}  Qxd5 {[%clk 0:00:17]} 37. Rg2 {[%clk 0:00:02]}  Qd7+ {[%clk 0:00:15]} 38. g4 {[%clk 0:00:02]}  Rc3+ {[%clk 0:00:14]} 39. Kh2 {[%clk 0:00:02]}  Nf3+ {[%clk 0:00:12]} 40. Kg3 {[%clk 0:00:02]}  Nd4+ {[%clk 0:00:12]} 41. Kh2 {[%clk 0:00:03]}  hxg4 {[%clk 0:00:12]} 42. Qf4 {[%clk 0:00:02]}  Nf3+ {[%clk 0:00:12]} 43. Kg3 {[%clk 0:00:02]}  Nxg5+ {[%clk 0:00:12]} 44. Kf2 {[%clk 0:00:02]}  Nh3+ {[%clk 0:00:12]} 0-1


[Site "https://www.chess.com"]

[Event "Titled Tuesday Blitz April 19 Late 2022"]
[White "D`Arruda, Ricardo D."]
[Black "Rytenko, Vsevolod"]
[WhiteFideId "100692"]
[BlackFideId "14133040"]
[WhiteElo "2453"]
[BlackElo "2120"]
[Result "0-1"]
[Round "07"]
[TimeControl "180+1"]
[Date "2022.04.19"]
[WhiteClock "0:01:55"]
[BlackClock "0:02:16"]

1. d4 {[%clk 0:03:00]}  d5 {[%clk 0:02:58]} 2. Nf3 {[%clk 0:02:58]}  c6 {[%clk 0:02:58]} 3. e3 {[%clk 0:02:58]}  Nf6 {[%clk 0:02:59]} 4. c4 {[%clk 0:02:58]}  a6 {[%clk 0:02:59]} 5. b3 {[%clk 0:02:57]}  Bg4 {[%clk 0:02:57]} 6. Nbd2 {[%clk 0:02:56]}  b5 {[%clk 0:02:57]} 7. Be2 {[%clk 0:02:52]}  Nbd7 {[%clk 0:02:55]} 8. O-O {[%clk 0:02:50]}  e6 {[%clk 0:02:55]} 9. Bb2 {[%clk 0:02:49]}  Bd6 {[%clk 0:02:55]} 10. Qc2 {[%clk 0:02:46]}  O-O {[%clk 0:02:54]} 11. h3 {[%clk 0:02:45]}  Bf5 {[%clk 0:02:53]} 12. Bd3 {[%clk 0:02:45]}  Bxd3 {[%clk 0:02:53]} 13. Qxd3 {[%clk 0:02:46]}  Qe7 {[%clk 0:02:53]} 14. Rfe1 {[%clk 0:02:41]}  Rab8 {[%clk 0:02:53]} 15. Rab1 {[%clk 0:02:26]}  Ba3 {[%clk 0:02:50]} 16. Bxa3 {[%clk 0:02:14]}  Qxa3 {[%clk 0:02:49]} 17. c5 {[%clk 0:02:15]}  Rfd8 {[%clk 0:02:39]} 18. e4 {[%clk 0:02:11]}  Nxc5 {[%clk 0:02:33]} 19. Qc3 {[%clk 0:01:55]}  Ncxe4 {[%clk 0:02:30]} 20. Qxc6 {[%clk 0:01:55]}  Rdc8 {[%clk 0:02:16]} 0-1


[Site "https://www.chess.com"]

[Event "Titled Tuesday Blitz April 19 Late 2022"]
[White "Dilmukhametov, Artur"]
[Black "Schekachikhin, Maksim"]
[WhiteFideId "24179922"]
[BlackFideId "24177830"]
[WhiteElo "2244"]
[BlackElo "2230"]
[Result "0-1"]
[Round "07"]
[TimeControl "180+1"]
[Date "2022.04.19"]
[WhiteClock "0:00:19"]
[BlackClock "0:00:49"]

1. d4 {[%clk 0:02:49]}  c5 {[%clk 0:03:00]} 2. d5 {[%clk 0:02:46]}  g6 {[%clk 0:03:00]} 3. Nc3 {[%clk 0:02:46]}  Bg7 {[%clk 0:03:01]} 4. e4 {[%clk 0:02:44]}  e6 {[%clk 0:03:00]} 5. Nf3 {[%clk 0:02:43]}  exd5 {[%clk 0:02:59]} 6. exd5 {[%clk 0:02:44]}  d6 {[%clk 0:03:00]} 7. Be2 {[%clk 0:02:40]}  Nf6 {[%clk 0:02:59]} 8. O-O {[%clk 0:02:40]}  O-O {[%clk 0:03:00]} 9. Nd2 {[%clk 0:02:40]}  Re8 {[%clk 0:02:59]} 10. a4 {[%clk 0:02:35]}  Nbd7 {[%clk 0:02:58]} 11. Nc4 {[%clk 0:02:34]}  Ne5 {[%clk 0:02:57]} 12. Na3 {[%clk 0:02:31]}  Bf5 {[%clk 0:02:54]} 13. Bf4 {[%clk 0:02:23]}  Ne4 {[%clk 0:02:52]} 14. Nxe4 {[%clk 0:02:19]}  Bxe4 {[%clk 0:02:53]} 15. c3 {[%clk 0:02:17]}  a6 {[%clk 0:02:50]} 16. Re1 {[%clk 0:02:04]}  Qf6 {[%clk 0:02:45]} 17. Bg3 {[%clk 0:02:00]}  h5 {[%clk 0:02:44]} 18. Bf1 {[%clk 0:01:29]}  Bf5 {[%clk 0:02:26]} 19. Qd2 {[%clk 0:01:29]}  h4 {[%clk 0:02:17]} 20. Bf4 {[%clk 0:01:29]}  Bd7 {[%clk 0:02:13]} 21. Bg5 {[%clk 0:01:07]}  Qf5 {[%clk 0:02:14]} 22. h3 {[%clk 0:01:07]}  Bf6 {[%clk 0:02:06]} 23. Bxf6 {[%clk 0:01:04]}  Qxf6 {[%clk 0:02:07]} 24. Nc4 {[%clk 0:01:00]}  Nxc4 {[%clk 0:02:03]} 25. Bxc4 {[%clk 0:01:01]}  b5 {[%clk 0:02:02]} 26. axb5 {[%clk 0:00:58]}  axb5 {[%clk 0:02:03]} 27. Bf1 {[%clk 0:00:58]}  Kg7 {[%clk 0:01:45]} 28. Qd1 {[%clk 0:00:36]}  b4 {[%clk 0:01:41]} 29. Rxe8 {[%clk 0:00:34]}  Rxa1 {[%clk 0:01:26]} 30. Qxa1 {[%clk 0:00:34]}  Bxe8 {[%clk 0:01:26]} 31. Qa8 {[%clk 0:00:29]}  bxc3 {[%clk 0:01:23]} 32. bxc3 {[%clk 0:00:29]}  Bd7 {[%clk 0:01:22]} 33. c4 {[%clk 0:00:20]}  Bf5 {[%clk 0:01:21]} 34. Qa3 {[%clk 0:00:20]}  Qd4 {[%clk 0:01:20]} 35. Qe3 {[%clk 0:00:19]}  Qxe3 {[%clk 0:01:20]} 36. fxe3 {[%clk 0:00:20]}  Kf6 {[%clk 0:01:21]} 37. Kf2 {[%clk 0:00:20]}  Ke5 {[%clk 0:01:21]} 38. Kf3 {[%clk 0:00:20]}  g5 {[%clk 0:01:21]} 39. Kf2 {[%clk 0:00:19]}  Bc2 {[%clk 0:01:18]} 40. Be2 {[%clk 0:00:19]}  f5 {[%clk 0:01:18]} 41. Bf1 {[%clk 0:00:20]}  Ke4 {[%clk 0:01:12]} 42. Be2 {[%clk 0:00:18]}  Bd3 {[%clk 0:01:11]} 43. Bf3+ {[%clk 0:00:18]}  Ke5 {[%clk 0:01:11]} 44. Be2 {[%clk 0:00:18]}  Bxe2 {[%clk 0:01:05]} 45. Kxe2 {[%clk 0:00:18]}  Ke4 {[%clk 0:01:05]} 46. Kd2 {[%clk 0:00:16]}  g4 {[%clk 0:01:05]} 47. Ke2 {[%clk 0:00:14]}  gxh3 {[%clk 0:00:48]} 48. gxh3 {[%clk 0:00:15]}  f4 {[%clk 0:00:49]} 49. exf4 {[%clk 0:00:15]}  Kxf4 {[%clk 0:00:50]} 50. Kf2 {[%clk 0:00:16]}  Ke4 {[%clk 0:00:49]} 51. Ke2 {[%clk 0:00:17]}  Kd4 {[%clk 0:00:49]} 52. Kf3 {[%clk 0:00:18]}  Kxc4 {[%clk 0:00:49]} 53. Kg4 {[%clk 0:00:19]}  Kxd5 {[%clk 0:00:50]} 54. Kxh4 {[%clk 0:00:19]}  Ke6 {[%clk 0:00:49]} 55. Kg5 {[%clk 0:00:19]}  Kf7 {[%clk 0:00:49]} 0-1


[Site "https://www.chess.com"]